Cogmind - Beta 14 @@@ ROGUE MODE // 2025.01.13 @ 20:16:30 Player: puppuppit Result: Destroyed by B-75 Beast with Magnetic Acceleration Cannon Performance ------------- Evolutions (2) 1000 Regions Visited (6) 1200 Robots Destroyed (141) 705 Value Destroyed (3428) 3428 Prototype IDs (31) 620 Alien Tech Used (0) 0 Bonus (1292) 1292 TOTAL SCORE: 8245 Bonus ------- High Alert Combat Kills 753 Follower Combat Kills 74 Entered Garrisons 200 Aligned with FarCom 300 Friendly Fire -35 Cogmind --------- Core Integrity 0/550 Matter 9/300 Energy 100/100 System Corruption 0% Temperature Cool (12) Movement Core (200) Ox3 Location -8/Garrison Parts ------- > --- POWER (1) -------- (None) > --- PROPULSION (4) --- (None) > --- UTILITY (3) ------ Improved Heat Sink Medium Storage Unit Advanced Salvage Targeting Computer > --- WEAPON (3) ------- (None) > --- INVENTORY (10) --- Micro Fission Core Trap Scanner Experimental Sensor Array Improved Weapon Cycler Authchip [R/Combat] Trap Reconfigurator Improved Field Recycling Unit (0) Enhanced Gauss Cannon Enhanced Gauss Cannon Peak State ------------ > --- POWER ------------ Micro Fission Core > --- PROPULSION ------- Aerolev Unit Combat Airjet Combat Gravmag System > --- UTILITY ---------- Medium Storage Unit Advanced Salvage Targeting Computer Improved Propulsion Shielding > --- WEAPON ----------- Enhanced Gauss Cannon Enhanced Gauss Cannon > --- INVENTORY -------- Trap Scanner Improved Weapon Cycler Trap Reconfigurator Improved Field Recycling Unit Minigun Minigun Missile Launcher [Rating: 46] Favorites ----------- Power Light Ion Engine Engine Light Ion Engine Power Core Light Nuclear Core Propulsion Hover Unit Wheel Wheel Hover Unit Hover Unit Utility Medium Storage Unit Device Improved Heat Sink Storage Medium Storage Unit Processor Advanced Targeting Computer Hackware Hacking Suite Protection Improved Propulsion Shielding Weapon Light Cannon Energy Gun EM Pulse Gun Ballistic Gun Improved Assault Rifle Ballistic Cannon Light Cannon Launcher Missile Launcher Build | -11 -10 -10 -10 -9 -8 -8 ------- Run | Yrd Mat Min Exi Min Mat Gar Slots Evolved 4 | . . . . . 4 . Power . | . . . . . . . Propulsion 2 | . . . . . 2 . Utility 1 | . . . . . 1 . Weapon 1 | . . . . . 1 . Parts Attached 110 | 8 14 5 3 9 44 27 Power 14 | 1 5 1 . 4 2 1 Engine 10 | 1 4 1 . 4 . . Core 4 | . 1 . . . 2 1 Reactor . | . . . . . . . Propulsion 24 | 2 2 2 1 1 11 5 Treads . | . . . . . . . Leg . | . . . . . . . Wheel 2 | 2 . . . . . . Hover 22 | . 2 2 1 1 11 5 Flight . | . . . . . . . Utility 33 | 3 5 . 1 . 12 12 Device 21 | 2 3 . 1 . 6 9 Storage 4 | 1 2 . . . 1 . Processor 3 | . . . . . 2 1 Hackware 1 | . . . . . 1 . Protection 4 | . . . . . 2 2 Artifact . | . . . . . . . Weapon 39 | 2 2 2 1 4 19 9 Energy Gun 1 | 1 . . . . . . Energy Cannon . | . . . . . . . Ballistic Gun 13 | 1 . . . . 8 4 Ballistic Cannon 16 | . 2 1 1 2 6 4 Launcher 9 | . . 1 . 2 5 1 Special Weapon . | . . . . . . . Impact Weapon . | . . . . . . . Slashing Weapon . | . . . . . . . Piercing Weapon . | . . . . . . . Special Melee Weapon . | . . . . . . . Unidentified Prototypes 2 | . . . . . 2 . Parts Lost 19 | . . . . . 6 13 Power 1 | . . . . . . 1 Propulsion 11 | . . . . . 4 7 Utility 3 | . . . . . 1 2 Weapon 4 | . . . . . 1 3 Highest Loss Streak 5 | . . . . . 3 5 To Critical Strikes . | . . . . . . . Average Slot Usage (%) 91 | . 96 92 100 100 97 77 Engine 5 | . 10 6 14 14 2 . Core 4 | . . . . . 6 7 Wheel 4 | . 25 . . . . . Hover 25 | . 2 28 28 28 35 25 Device 9 | . 14 14 14 14 6 6 Storage 11 | . 14 14 14 14 9 9 Processor 4 | . . . . . 9 8 Protection 1 | . . . . . 1 1 Ballistic Gun 6 | . . . . . 9 11 Ballistic Cannon 17 | . 26 27 28 27 15 5 Peak Build Rating 46 | 9 12 15 18 20 36 46 Average Rating 23 | 5 8 11 17 17 28 35 On Entrance 14 | . 9 8 15 18 17 34 Naked Turns . | . . . . . . . Heaviest Build 45 | 13 22 15 17 20 36 45 Greatest Support 42 | 20 20 18 18 18 34 42 Greatest Overweight (x) 5 | 1 1 . . 1 1 5 Average Overweight (x) . | . . . . . . . Largest Inventory Capacity 10 | 8 10 8 8 8 10 10 Average Capacity 9 | 7 9 8 8 8 9 10 Most Carried 10 | 1 10 8 8 8 10 10 Average Carried 7 | . 7 7 7 7 8 8 Final Capacity 10 | 8 8 8 8 8 10 10 Final Carried 10 | 1 7 8 8 8 10 9 Class Distribution -------------------- 62% | Mutant 16% | Skirmisher 14% | Scavenger-Skirmisher 4% | Gunner Dominant Class ---------------- Mutant | -10/Materials Mutant | -10/Mines Mutant | -10/Exiles Mutant | -9/Mines Scavenger-Skirmisher | -8/Materials Mutant | -8/Garrison Resources | -11 -10 -10 -10 -9 -8 -8 ----------- Run | Yrd Mat Min Exi Min Mat Gar Matter Collected 4006 | 294 911 132 20 355 1981 313 Remotely 87 | 87 . . . . . . Salvage Created 3845 | 106 1028 134 . 291 1907 379 Parts 263 | 7 61 13 . 25 132 25 Haulers Intercepted 7 | . 2 . . . 5 . Recyclers Shooed 4 | . 2 . . 1 1 . Parts Field Recycled 32 | . . . . . 14 18 Retrieved Matter 392 | . . . . . 256 136 Parts Self-Destructed . | . . . . . . . Prevented . | . . . . . . . Kills | -11 -10 -10 -10 -9 -8 -8 ------- Run | Yrd Mat Min Exi Min Mat Gar Combat Hostiles Destroyed 88 | . 13 4 . 14 43 14 Guns 11 | . . . . . 8 3 Cannons 44 | . 13 1 . 7 22 1 AOE 32 | . . 3 . 7 13 9 Classes Destroyed 14 | 2 8 . . 1 2 1 Worker 9 | . 3 1 . 1 4 . Builder 7 | . 1 . . 1 5 . Tunneler 4 | 2 . . . 1 1 . Hauler 7 | . 2 . . . 5 . Recycler 14 | 1 7 1 . 1 4 . Mechanic 2 | . 1 . . . 1 . Operator 2 | . 1 . . . 1 . Watcher 8 | . 2 . . . 5 1 Swarmer 29 | . 2 3 . 9 11 4 Grunt 41 | . 11 1 . 4 19 6 Brawler 1 | . . . . . . 1 Duelist 2 | . . . . 1 1 . Sentry 13 | . . . . . 10 3 Hunter 2 | . . . . . 2 . Best Kill Streak 14 | 2 8 3 . 5 14 7 Combat Bots Only 7 | . 3 3 . 4 6 7 Max Kills in Single Turn 4 | 1 1 3 . 4 3 2 Gunslinging . | . . . . . . . Exploded 4 | . . 3 . 4 3 2 Melee . | . . . . . . . Uniques/NPCs Destroyed . | . . . . . . . Combat | -11 -10 -10 -10 -9 -8 -8 -------- Run | Yrd Mat Min Exi Min Mat Gar Hostile Shots Fired 303 | . 30 7 . 9 105 152 Missed 116 | . 9 3 . 2 44 58 Damage Taken 3176 | . 226 52 . 118 876 1904 Core 636 | . 34 30 . . 97 475 Absorbed by Shields 159 | . . . . . . 159 Redirected to Shielding 106 | . . . . . 13 93 Regen/Repaired (Parts) 134 | . . . . . 134 . Core Remaining (%) 87 | 100 . . . 74 . . Volleys Fired 309 | 8 73 12 . 25 120 71 Largest 3 | 2 2 2 . 2 3 3 Hottest 115 | 60 70 70 . 79 115 114 Shots Fired 709 | 16 146 17 . 45 347 138 Gun 199 | 16 6 . . . 98 79 Cannon 482 | . 140 16 . 40 237 49 Launcher 28 | . . 1 . 5 12 10 Special . | . . . . . . . Kinetic 670 | 8 143 16 . 40 335 128 Thermal . | . . . . . . . Explosive 28 | . . 1 . 5 12 10 Electromagnetic 11 | 8 3 . . . . . Robot Hit Streak 30 | 4 7 2 . 6 21 30 Robot Miss Streak 5 | 1 4 2 . 5 4 4 Penetration Max . | . . . . . . . Secondary Targets . | . . . . . . . Shots Hit Robots 406 | 10 68 8 . 23 204 93 Core Hits 210 | 4 33 7 . 23 114 29 Critical Kills . | . . . . . . . Critical Parts Destroyed 2 | . . . . . 2 . Critical Strikes 24 | . 6 . . 1 11 6 Destroy 2 | . . . . . 2 . Blast 22 | . 6 . . 1 9 6 Melee Attacks . | . . . . . . . Impact . | . . . . . . . Slashing . | . . . . . . . Piercing . | . . . . . . . Sneak Attacks . | . . . . . . . Combat Hostiles . | . . . . . . . Follow-up Attacks . | . . . . . . . Damage Inflicted 10209 | 121 1273 233 . 984 4927 2671 Guns 2084 | 121 44 . . . 1014 905 Cannons 5557 | . 1229 134 . 532 2610 1052 Explosions 2565 | . . 99 . 452 1303 711 Melee . | . . . . . . . Ramming 3 | . . . . . . 3 Kinetic 7565 | 63 1255 134 . 532 3624 1957 Thermal 93 | . . . . 93 . . Explosive 2472 | . . 99 . 359 1303 711 Electromagnetic 76 | 58 18 . . . . . Impact . | . . . . . . . Slashing . | . . . . . . . Piercing . | . . . . . . . Highest Corruption . | . . . . . . . Average Corruption . | . . . . . . . Corruption Purged . | . . . . . . . Corruption Blocked . | . . . . . . . Overload Shots . | . . . . . . . Overflow Damage 122 | . 28 . . 13 44 37 Projectiles 97 | . 28 . . 5 32 32 Explosions 25 | . . . . 8 12 5 Melee . | . . . . . . . Knockbacks 44 | . 8 1 . 3 31 1 Impact . | . . . . . . . Kinetic 42 | . 8 1 . 3 29 1 Secondary 2 | . . . . . 2 . Self-Inflicted Damage 56 | . . . . 55 . 1 Shots 1 | . . . . 1 . . Rammed 1 | . . . . . . 1 Targets Rammed 1 | . . . . . . 1 Kicked . | . . . . . . . Crushed . | . . . . . . . Highest Temperature 274 | . 90 . . 2 183 274 Average Temperature 43 | . 40 . . 2 35 60 Received Heat Transfer 857 | . 102 27 . 9 387 332 Siege Activations . | . . . . . . . Robots Corrupted . | . . . . . . . Combat Hostiles . | . . . . . . . Parts Fried 1 | . 1 . . . . . Impact Corruptions . | . . . . . . . Robots Melted . | . . . . . . . Combat Hostiles . | . . . . . . . Parts Melted . | . . . . . . . Heat Transferred 100 | . . . . 100 . . Parts Sabotaged . | . . . . . . . Parts Stolen . | . . . . . . . Parts Stripped . | . . . . . . . Power Chain Reactions . | . . . . . . . Alert | -11 -10 -10 -10 -9 -8 -8 ------- Run | Yrd Mat Min Exi Min Mat Gar Peak Influence 1097 | 15 380 344 . 563 1047 1097 Initial 489 | . 9 148 . . 219 489 Average 532 | 4 202 287 . 337 642 793 Maximum Alert Level 3 | . 1 1 . 2 3 3 Low Security (%) 15 | 100 61 4 . 13 . . Level 1 27 | . 38 95 . 50 21 . Level 2 20 | . . . . 36 27 29 Level 3 37 | . . . . . 51 70 Level 4 . | . . . . . . . Level 5 . | . . . . . . . High Security . | . . . . . . . Max Security . | . . . . . . . Squads Dispatched 17 | . 5 1 . . 11 . Investigation 9 | . 4 1 . . 4 . Extermination . | . . . . . . . Reinforcement 5 | . 1 . . . 4 . Assault 2 | . . . . . 2 . Garrison 1 | . . . . . 1 . Intercept . | . . . . . . . Searches Triggered . | . . . . . . . Construction Impeded 3 | . . . . . 3 . Haulers Reinforced . | . . . . . . . Active Scanning Responses . | . . . . . . . Cargo Convoy Interrupts . | . . . . . . . Stealth | -11 -10 -10 -10 -9 -8 -8 --------- Run | Yrd Mat Min Exi Min Mat Gar Distress Signals 8 | . 1 . . . 6 1 Communications Jammed . | . . . . . . . Distress Signals . | . . . . . . . Times Spotted 117 | . 19 4 . 12 62 20 Peak Tracking Total 8 | . 4 3 . 3 8 7 Tactical Retreats 11 | . 1 . . 1 3 6 Traps | -11 -10 -10 -10 -9 -8 -8 ------- Run | Yrd Mat Min Exi Min Mat Gar Traps Triggered 5 | . 2 . . . . 3 Indirectly . | . . . . . . . Trap Hack Attempts . | . . . . . . . Triggered . | . . . . . . . Disarmed . | . . . . . . . Reprogrammed 6 | . . . . . 6 . Reused 6 | . . . . . . 6 Traps Extracted . | . . . . . . . Installed 6 | . . . . . . 6 Triggered 6 | . . . . . . 6 Most Traps Carried 4 | . . . . . . 4 Machines | -11 -10 -10 -10 -9 -8 -8 ---------- Run | Yrd Mat Min Exi Min Mat Gar Machines Disabled 15 | . 5 . . 2 5 3 Max in Single Turn 1 | . 1 . . 1 1 1 Garrison Relay 2 | . . . . . . 2 Machines Repaired . | . . . . . . . Machines Dismantled . | . . . . . . . Machines Sabotaged . | . . . . . . . Overloaded Fab Kills . | . . . . . . . Hacking | -11 -10 -10 -10 -9 -8 -8 --------- Run | Yrd Mat Min Exi Min Mat Gar Machines Accessed 27 | . 7 1 5 . 14 . Terminals 13 | . 5 . . . 8 . Fabricators . | . . . . . . . Repair Stations 2 | . . . . . 2 . Recycling Units 3 | . 2 . . . 1 . Scanalyzers 2 | . . . . . 2 . Garrison Access 1 | . . . . . 1 . Total Hacks 126 | . 19 1 50 . 56 . Successful 85 | . 5 1 50 . 29 . Failed 40 | . 14 . . . 26 . Catastrophic 8 | . 4 . . . 4 . Database Lockouts 1 | . . . . . 1 . Manual 21 | . 8 . 1 . 12 . Terminals 48 | . 14 . . . 34 . Fabricators . | . . . . . . . Repair Stations 7 | . . . . . 7 . Recycling Units 8 | . 5 . . . 3 . Scanalyzers 10 | . . . . . 10 . Garrison Access 2 | . . . . . 2 . Terminal Hacks 70 | . 3 1 50 . 16 . Record 51 | . . . 49 . 2 . Robot Analysis 3 | . 2 . . . 1 . Prototype ID Bank 3 | . 1 . . . 2 . Open Door 1 | . . 1 . . . . Level Access Points 1 | . . . . . 1 . Branch Access Points 1 | . . . . . 1 . Emergency Access Points 1 | . . . . . 1 . Terminal Index 1 | . . . . . 1 . Alert Level 1 | . . . . . 1 . Unreport Threat 4 | . . . . . 4 . Reprogram Traps 1 | . . . . . 1 . Recall Investigation 1 | . . . . . 1 . Derelict Proto ID Bank 1 | . . . 1 . . . Fabricator Hacks . | . . . . . . . Repair Station Hacks 5 | . . . . . 5 . Scan Component 3 | . . . . . 3 . Repair 2 | . . . . . 2 . Recycling Unit Hacks 3 | . 2 . . . 1 . Retrieve Components 3 | . 2 . . . 1 . Scanalyzer 6 | . . . . . 6 . Insert Component 3 | . . . . . 3 . Analyze 3 | . . . . . 3 . Garrison Access Hacks 1 | . . . . . 1 . Unlock Access 1 | . . . . . 1 . Unauthorized Hacks . | . . . . . . . Terminals . | . . . . . . . Fabricators . | . . . . . . . Repair Stations . | . . . . . . . Recycling Units . | . . . . . . . Scanalyzers . | . . . . . . . Garrison Access . | . . . . . . . Data Cores Recovered . | . . . . . . . Used . | . . . . . . . Hacking Detections 20 | . 6 . . . 14 . Full Trace Events 9 | . 4 . . . 5 . Feedback Events . | . . . . . . . Feedback Blocked . | . . . . . . . Robot Schematics Acquired . | . . . . . . . Robots Built . | . . . . . . . Authchips . | . . . . . . . Time . | . . . . . . . Total Robot Build Rating . | . . . . . . . Part Schematics Acquired 2 | . . . . . 2 . Parts Built . | . . . . . . . Authchips . | . . . . . . . Time . | . . . . . . . Total Part Build Rating . | . . . . . . . Parts Repaired 2 | . . . . . 2 . Time 96 | . . . . . 96 . Parts Recycled . | . . . . . . . Recycled Matter . | . . . . . . . Retrieved Matter . | . . . . . . . Retrieved Components 14 | . 11 . . . 3 . Parts Scanalyzed 2 | . . . . . 2 . Part Schematics Acquired 2 | . . . . . 2 . Parts Damaged 2 | . . . . . 2 . Bothacking | -11 -10 -10 -10 -9 -8 -8 ------------ Run | Yrd Mat Min Exi Min Mat Gar Used RIF Installer . | . . . . . . . Robots Hacked . | . . . . . . . Non-combat . | . . . . . . . Combat . | . . . . . . . Robot Hacks Applied . | . . . . . . . Relay Couplers Released 8 | . . . . . . 8 Machine Destruction 8 | . . . . . . 8 Fabnet Peak Effective % . | . . . . . . . Robots Rewired . | . . . . . . . Allies Hacked . | . . . . . . . Hacks Repelled . | . . . . . . . Allies | -11 -10 -10 -10 -9 -8 -8 -------- Run | Yrd Mat Min Exi Min Mat Gar Total Allies 3 | . . 3 . . . . Largest Group 3 | . . 3 3 3 3 . Highest-Rated Group 40 | . . 40 40 40 40 . Highest-Rated Ally 16 | . . 16 16 16 16 . Total Orders . | . . . . . . . Ally Attacks 32 | . . 10 . 4 18 . Total Damage 358 | . . 141 . 44 173 . Kills 5 | . . 2 . 2 1 . Allies Corrupted . | . . . . . . . Allies Melted . | . . . . . . . Intel | -11 -10 -10 -10 -9 -8 -8 ------- Run | Yrd Mat Min Exi Min Mat Gar Robot Analysis Total 3 | . 2 . . . 1 . Derelict Logs Recovered 2 | . . 1 . 1 . . Drone Launches . | . . . . . . . Drone Recoveries . | . . . . . . . Exploration | -11 -10 -10 -10 -9 -8 -8 ------------- Run | Yrd Mat Min Exi Min Mat Gar Turns Passed 4413 | 72 780 352 326 398 1254 1231 Spaces Moved 4243 | 45 640 466 434 435 1193 1030 Core 57 | 8 . . . . . 49 Treads . | . . . . . . . Legs . | . . . . . . . Wheels 608 | 37 571 . . . . . Hover 3578 | . 69 466 434 435 1193 981 Flight . | . . . . . . . Fastest Speed 48 | 50 56 56 66 66 48 50 Average Speed 66 | 80 77 60 66 66 53 75 Slowest Speed 300 | 100 95 66 66 131 112 300 Overloaded Moves . | . . . . . . . Propulsion Burnouts . | . . . . . . . Robots Hopped . | . . . . . . . Cave-ins Triggered . | . . . . . . . Time Travels 1 | . . . 1 . . . Exploration Rate (%) 71 | 3 88 93 90 88 91 50 Regions Visited 6 Branch Regions 3 Pre-discovered Areas 2 | . . 1 1 . . . Known Exits Taken 1 | . . . . . 1 . Unknown Exits Taken 5 | 1 1 1 1 1 . . Scrap Searched 3 | . . 1 . 2 . . Spaces Dug . | . . . . . . . Terrain Destroyed 241 | . . 5 . 88 107 41 Melee . | . . . . . . . Projectile 20 | . . . . 5 7 8 AOE 221 | . . 5 . 83 100 33 Terrain Rammed . | . . . . . . . Walls Destroyed . | . . . . . . . Machines Disabled . | . . . . . . . Actions | -11 -10 -10 -10 -9 -8 -8 --------- Run | Yrd Mat Min Exi Min Mat Gar Total 5233 | 61 785 521 473 497 1533 1363 Wait 403 | . 16 26 32 22 140 167 Move 4237 | 44 639 465 433 434 1192 1030 Hop . | . . . . . . . Pick Up 58 | . 18 7 2 1 16 14 Fast Attach 31 | 8 6 1 1 2 9 4 Attach 20 | . . . . . 10 10 Detach 18 | 1 4 . . . 5 8 Swap 59 | . 8 4 2 7 25 13 Drop 67 | . 21 6 3 6 16 15 Fire 309 | 8 73 12 . 25 120 71 Melee . | . . . . . . . Ram 1 | . . . . . . 1 Kick . | . . . . . . . Crush . | . . . . . . . Escape Stasis 24 | . . . . . . 24 Rewire . | . . . . . . . Trap 6 | . . . . . . 6 Miscellaneous . | . . . . . . . Route ------- -11/Scrapyard -10/Materials (discovered 5 exits: [*Mat x3] / *Min x2) -10/Mines (discovered 3 exits: [*Mat x2] / *Exi) -10/Exiles -9/Mines (discovered 2 exits: *Mat x2) -8/Materials (discovered 4 exits: *Fac x3 / Gar) -8/Garrison (discovered 1 exit: *Fac) History --------- Turn | Location | Event 24 | -11/Scrapyard | Discovered new exit (range 15) 73 | -11/Scrapyard | Entered Materials 205 | -10/Materials | Discovered new exit (range 12) 317 | -10/Materials | Build established: Mutant 335 | -10/Materials | Discovered new exit (range 6) 428 | -10/Materials | Discovered new exit (range 12) 539 | -10/Materials | Discovered new exit (range 13) 658 | -10/Materials | Discovered new exit (range 15) 853 | -10/Materials | Entered Mines 861 | -10/Mines | Assisted by bots powering up and referring to "LRC-V3" 902 | -10/Mines | Learned 2 Materials zone layouts 904 | -10/Mines | Learned location of Storage (-9) 942 | -10/Mines | Assembled infested the area 954 | -10/Mines | Found a damaged Exp. Sensor Array with a note attached 955 | -10/Mines | Found Prototype Device 992 | -10/Mines | Met a Derelict bent on vengeance 1001 | -10/Mines | Discovered new exit (range 8) 1061 | -10/Mines | Discovered new exit (range 12) 1097 | -10/Mines | Met a Derelict shopkeep closing up shop 1176 | -10/Mines | Discovered new exit (range 5) 1205 | -10/Mines | Entered Exiles 1205 | -10/Exiles | Accompanied by 3 allies 1227 | -10/Exiles | Met 8R-AWN 1236 | -10/Exiles | Met EX-HEX 1267 | -10/Exiles | Met EX-DEC 1281 | -10/Exiles | Learned location of Zion (-7) 1307 | -10/Exiles | Visited The Gauntlet 1382 | -10/Exiles | Met EX-BIN 1391 | -10/Exiles | Aligned with FarCom system 1392 | -10/Exiles | Given EX-Vault access code 1418 | -10/Exiles | Opened EX-Vault 1422 | -10/Exiles | Found Chronowheel 1422 | -10/Exiles | Activated Chronowheel 1422 | -10/Exiles | Spacetime reconverged on an earlier point 1426 | -10/Exiles | Found Trap Reconfigurator 1441 | -10/Exiles | Warned to stay clear of 0b10 Research branches 1490 | -10/Exiles | Discovered new exit (range 14) 1531 | -10/Exiles | Left Exiles lab with Trap Reconfigurator 1531 | -10/Exiles | Entered Mines 1531 | -9/Mines | Accompanied by 3 allies 1531 | -9/Mines | Discovered new exit (range 14) 1538 | -9/Mines | Received a Rocket Launcher from a helpful Derelict 1615 | -9/Mines | Learned Materials emergency access door positions 1776 | -9/Mines | Discovered new exit (range 13) 1929 | -9/Mines | Entered Materials 1929 | -8/Materials | Accompanied by 3 allies 1929 | -8/Materials | Evolved 4 slots: Propulsion x2, Utility x1, Weapon x1 2075 | -8/Materials | Central database locked down 2234 | -8/Materials | Repaired Broken Cmb. Airjet 2262 | -8/Materials | Repaired Lgt. Cannon 2376 | -8/Materials | Lost 3 parts (2n1w) 2407 | -8/Materials | Discovered new exit (range 10) 2501 | -8/Materials | Garrison activated, responded to threat 2543 | -8/Materials | Identified Exp. Sensor Array 2550 | -8/Materials | Identified exit to Factory 2568 | -8/Materials | Identified exit to Garrison 2729 | -8/Materials | First assault squad dispatched 3183 | -8/Materials | Entered Garrison 3216 | -8/Garrison | Build established: Skirmisher 3367 | -8/Garrison | Triggered checkpoint 3510 | -8/Garrison | Triggered checkpoint 3542 | -8/Garrison | Triggered checkpoint 3544 | -8/Garrison | Destroyed 7 combat bots 3593 | -8/Garrison | Spotted B-75 Beast 3630 | -8/Garrison | Discovered exit to Factory (range 11) 3633 | -8/Garrison | Triggered checkpoint 3737 | -8/Garrison | Lost 5 parts (1p1n1u2w) 3797 | -8/Garrison | Triggered checkpoint 3891 | -8/Garrison | Build established: Mutant 3895 | -8/Garrison | Core integrity fell below 50% 4308 | -8/Garrison | Core integrity fell below 20% 4414 | -8/Garrison | Destroyed by B-75 Beast with Magnetic Acceleration Cannon Last Messages --------------- matter... 04253_ Imp. Field Recycling Unit collects Beam Rifle, recycling 10 matter... 04254_ Imp. Field Recycling Unit collects Heat Sink, recycling 5 matter... 04281_ Imp. Field Recycling Unit collects Particle Gun, recycling 0 matter... 04289_ Knocked back. 04299_ Slug penetrates B-75 Beast. 04302_ Destroyed Med. Reflective Plating. 04302_ B-75 Beast suffers critical hit (Blast). 04302_ Destroyed Rnf. Deuterium Engine. 04304_ Cmb. Gravmag System destroyed. 04304_ Cmb. Airjet destroyed. 04305_ Slug penetrates B-75 Beast. 04305_ B-75 Beast suffers critical hit (Blast). 04305_ Destroyed Dynamic Insulation System. 04305_ B-75 Beast Coolant Injector blasted off. 04308_ B-75 Beast Imp. Cooling System blasted off. 04311_ Slug penetrates B-75 Beast. 04311_ Destroyed Hvy. Machine Gun. 04315_ Acquired 8 matter. 04383_ ALERT: Garrison interior compromised. Map ----- +----------------------------------------------------+ | ????????????? ^ ^#??????## ## # # #""""!#????? | | ????????####### ########## # # ####### ###???? | | ????????# ! ! #???? | | ????????# ! #???? | | ????????# ############### # # # #### ###???? | | ????????# #?????????????## ### # ###?????? | | ????????# #?????????????## ##### ##???????? | | ????????# ############???### ##??? #????????? | | ????????# ##""""""""""#???# ##????###????????? | | ????????# ##"!!!!!!"""#???## #????????????????? | | ????????# ## ""#???### #?#############??? | | ????????# ## !"#???### #?# ???? | | ????????# "# !"#??## #?# "??" "??????? | | ???????## !"#???+ ### "??" "??????? | | ??????? # !"#???# ## "??" "??????? | | ??????##" ## ""#???### ## """" """" #?? | | ???#### ##"!!!!!!"""#?????# ## #?? | | ???# # """"""""""#?????# #?? | | ???# # ##########?????# """ """" #?? | | ???# ### # # ###???????????# ## " "????#?? | | ???# ## # ###?????????# ### " "??????? | | ??# # # ## ##????????# #?# "" """" #?? | | ??# # # ## # ##???????# #?# #?? | | ???# # #### ####+#### #?##############?? | | ???# # #????????????????? | | ??# ### B @ % #????????????????? | | ??## #### ### ####;#########????????????????? | | ???# ?### ### #??###????????????????????????? | | ???#?? # # ###?????????????????????????????? | | ???# # # ##???????????????????????????????? | | ???## ### ##????????????????????????????????? | | ??####### #####?????????????????????????????????? | | ??# ## #?????????????????????????????????????? | | ### # ##????????????????????????????????????? | | #????????????????????????????????????? | | ###??????????????????????????????????? | | # #??????????????????????????????????? | | ## # #??????????????????????????????????? | | ## # ###??????????????????????????????????? | | ##########?????????????????????????? | | # ## # ####??????????????????????? | | # # ##?????????????????????? | | # ## #?????????????????????? | | ## ## ### # ### #?????????????????????? | | # ## ## # ### # # #?????????????????????? | | # ##????????????????????? | | ## #????????????????????? | | ## # #????????????????????? | | # # # ## # # # #????????????????????? | | # # # # ### ###??????????????????? | +----------------------------------------------------+ Best States ------------- Heat Dissipation 45 Energy Generation 15 Energy Capacity 250 Matter Stores 300 Matter Capacity 300 Sight Range 16 Terrain Scan Range 16 Terrain Scan Density 10 Propulsion Shielding 66 Weapon Cycling 20 Evasion (%) 55 Targeting Accuracy 16 Recoil Reduction 4 Salvage Targeting 3 Offensive Hacking 10 Authchip Count 1 Item Schematics ----------------- Cmb. Airjet | -8/Materials | Scanalyzed Exp. Sensor Array | -8/Materials | Scanalyzed Robot Schematics ------------------ None Fabricated ------------ Nothing Alien Tech Used ----------------- None Achievements -------------- None Challenges ------------ None Game ------ Seed SignalCannonPurifier Manual? 0 Play Time 00:59:31 Cumulative 25.4 hours Start 2025.01.13 @ 19:17:22 End 2025.01.13 @ 20:16:30 Sessions 1 Manual Loads 0 Difficulty Rogue Special Mode None Game No. 19 Rogue 19 Adventurer 0 Explorer 0 Win Type - Total 0 Types 0/0/0/0/0/0/0/0/0 Lore% 17 Gallery% 24 Achievement% 32 Wizard Run 0 Options --------- Layout 0 ASCII 0 Keyboard 1 Movement Arrows Keybinds 0 Fullscreen 1 Font 12/Proggy Map View 83x54 Zoom Use 0% Tactical HUD 1 Map Filters NONE Filters NONE Steam 0 RUN: f938b10a-e776-4e85-9fce-ca92759bc49d